Cogmind - Beta 15 @@@ ROGUE MODE // 2025.07.15 @ 20:11:31 Player: arius Result: Destroyed by H-88 Terminator with KE Penetrator Performance ------------- Evolutions (9) 4500 Regions Visited (11) 2200 Robots Destroyed (182) 910 Value Destroyed (9126) 9126 Prototype IDs (6) 120 Alien Tech Used (3) 600 Bonus (-32) -32 TOTAL SCORE: 17424 Bonus ------- Friendly Fire -32 Cogmind --------- Core Integrity 0/1600 Matter 65/300 Energy 98/100 System Corruption 20% Temperature Cool (0) Movement Core (50) Location -1/Access Parts ------- > --- POWER (1) -------- (None) > --- PROPULSION (8) --- (None) > --- UTILITY (14) ----- Advanced Signal Interpreter > --- WEAPON (2) ------- (None) > --- INVENTORY (5) ---- Power Amplifier Quantum Capacitor Core Stripper Peak State ------------ > --- POWER ------------ Quantum Reactor > --- PROPULSION ------- Flexi-carbon Leg Myomer Leg Myomer Leg Myomer Leg Myomer Leg Centrium Leg Heavy Shield Leg > --- UTILITY ---------- Advanced Heat Sink Huge Storage Unit Small Battery Advanced Sensor Array Advanced Signal Interpreter IFF Parser Advanced Target Analyzer Quantum Capacitor Improved Core Shielding Centrium Heavy Armor Plating Advanced Force Field Hacking Suite > --- WEAPON ----------- Compact Mass Driver Enhanced Hardcell Cannon > --- INVENTORY -------- Antimatter Reactor Reinforced Antimatter Reactor Particle Reactor Particle Reactor Quantum Reactor Light Quantum Reactor Armored Medium Treads Advanced Medium Treads Advanced Medium Treads Biometal Leg Centrium Leg Power Amplifier Huge Storage Unit Quantum Capacitor Advanced Remote Force Field Improved System Restoration Module Improved System Restoration Module Improved System Restoration Module Gamma Rifle Enhanced Quantum Rifle Enhanced Nova Cannon Advanced Remote Datajack Core Stripper [Rating: 183] Favorites ----------- Power Quantum Reactor Engine Improved Ion Engine Power Core Reinforced Fission Core Reactor Quantum Reactor Propulsion Myomer Leg Treads Advanced Medium Treads Leg Myomer Leg Wheel Compact Wheel Hover Unit Improved Antigrav System Flight Unit Field Propulsion Array Utility Hacking Suite Device Advanced Heat Sink Storage Small Battery Processor Advanced Target Analyzer Hackware Hacking Suite Protection Centrium Heavy Armor Plating Artifact Phase Redirector Weapon Flak Gun Energy Gun Gamma Rifle Energy Cannon Light EM Pulse Cannon Ballistic Gun Flak Gun Ballistic Cannon Enhanced Hardcell Cannon Special Weapon Improved Remote Datajack Impact Weapon Core Stripper Special Melee Weapon Datajack Build | -11 -10 -9 -8 -7 -6 -5 -4 -3 -3 -2 -1 ------- Run | Yrd Mat Mat Mat Fac Fac Fac Fac Res Qua Res Acc Slots Evolved 18 | . . 2 2 2 2 2 2 2 . 2 2 Power . | . . . . . . . . . . . . Propulsion 6 | . . 2 . . . 2 1 1 . . . Utility 12 | . . . 2 2 2 . 1 1 . 2 2 Weapon . | . . . . . . . . . . . . Parts Attached 243 | 4 7 9 20 14 18 16 24 51 29 38 13 Power 22 | 1 . 1 2 1 2 1 3 4 1 3 3 Engine 9 | 1 . 1 2 1 1 1 2 . . . . Core 3 | . . . . . 1 . 1 1 . . . Reactor 10 | . . . . . . . . 3 1 3 3 Propulsion 84 | . 4 5 6 3 3 6 8 22 8 15 4 Treads 12 | . 2 . . . . . . 4 2 4 . Leg 49 | . 2 5 6 3 1 2 3 8 6 10 3 Wheel 1 | . . . . . . . 1 . . . . Hover 19 | . . . . . 2 4 4 8 . 1 . Flight 3 | . . . . . . . . 2 . . 1 Utility 85 | 1 2 . 7 7 9 5 5 17 15 13 4 Device 40 | . . . 5 2 3 4 3 6 7 6 4 Storage 10 | 1 . . 1 . . . . 2 3 3 . Processor 16 | . 1 . . 3 4 . . 5 2 1 . Hackware 5 | . . . . 1 . . 1 3 . . . Protection 13 | . 1 . 1 1 2 1 1 1 2 3 . Artifact 1 | . . . . . . . . . 1 . . Weapon 52 | 2 1 3 5 3 4 4 8 8 5 7 2 Energy Gun 20 | 1 . 1 1 2 . 2 4 3 2 4 . Energy Cannon 9 | . . 2 1 . . 1 1 1 1 1 1 Ballistic Gun 16 | 1 1 . 2 1 4 . 1 4 1 1 . Ballistic Cannon 3 | . . . . . . . 1 . . 1 1 Launcher . | . . . . . . . . . . . . Special Weapon 1 | . . . . . . . 1 . . . . Impact Weapon 1 | . . . . . . . . . 1 . . Slashing Weapon . | . . . . . . . . . . . . Piercing Weapon . | . . . . . . . . . . . . Special Melee Weapon 2 | . . . 1 . . 1 . . . . . Unidentified Prototypes 3 | . . . . . . . . . 3 . . Corrupted Parts 1 | . . . . . . 1 . . . . . System Corruption 5 | . . . . . . 5 . . . . . Parts Lost 166 | . 2 1 9 8 8 12 26 17 24 28 31 Power 15 | . . . 1 1 1 1 3 2 1 2 3 Propulsion 65 | . . . 4 2 3 2 14 7 10 11 12 Utility 52 | . 1 . 1 3 3 4 2 4 10 11 13 Weapon 34 | . 1 1 3 2 1 5 7 4 3 4 3 Highest Loss Streak 19 | . 1 1 3 4 3 11 10 4 10 10 19 To Critical Strikes 3 | . . . . . . 1 1 . . . 1 Average Backups 15 | 4 6 7 9 19 19 15 18 4 16 19 19 Power 3 | . 1 1 2 5 6 5 7 . . 2 5 Propulsion 2 | 3 3 2 1 2 1 . . . 5 3 3 Utility 4 | . . 1 3 7 6 6 7 1 5 5 6 Weapon 3 | . 1 1 . 2 4 2 2 1 3 7 4 Tool/Special . | . . . . . . . . . . . . Unused Backups 63 | . 4 2 1 4 8 . 20 1 1 5 17 Power 23 | . 2 . . . 4 . 11 1 . 1 4 Propulsion 5 | . . . . . . . . . 1 3 1 Utility 19 | . 1 1 1 1 2 . 5 . . . 8 Weapon 15 | . 1 1 . 3 2 . 4 . . 1 3 Tool/Special 1 | . . . . . . . . . . . 1 Average Slot Usage (%) 87 | . 92 99 98 98 96 79 78 72 92 89 76 Engine 3 | . 14 11 8 6 3 2 2 . . . . Reactor 1 | . . . . . . . . 1 4 3 3 Treads 4 | . 9 . . . . . . 7 4 11 . Leg 20 | . 18 43 35 29 22 . 10 5 27 18 24 Hover 3 | . . . . . . 16 12 9 3 . . Device 11 | . . . 19 12 7 8 12 10 7 13 17 Storage 7 | . 14 11 9 7 6 5 4 . 7 10 6 Processor 12 | . . 11 . 14 25 18 14 11 12 11 7 Hackware 4 | . . . . 2 6 5 3 12 10 4 2 Protection 3 | . 6 . 6 6 4 3 . . 1 4 6 Energy Gun 3 | . 6 5 3 7 . 1 3 3 1 5 . Energy Cannon 2 | . . 13 7 . . 1 2 2 3 . . Ballistic Gun 5 | . 21 2 6 7 12 6 1 1 2 2 . Peak Build Rating 183 | 4 7 14 32 44 67 81 105 137 155 172 183 Average Rating 89 | 3 6 11 23 41 52 75 86 91 128 156 156 On Entrance 52 | . 4 7 14 32 44 67 69 2 113 118 165 Naked Turns 17 | . . . . . . . 17 . . . . Heaviest Build 188 | 11 14 20 56 66 66 76 102 127 188 155 170 Greatest Support 227 | 3 40 43 55 65 65 60 70 100 198 227 210 Greatest Overweight (x) 3 | 3 . . 1 1 2 1 3 1 1 2 1 Average Overweight (x) . | 2 . . . . . . . . . . . Largest Inventory Capacity 25 | 8 8 8 20 20 20 20 20 25 25 25 25 Average Capacity 17 | 7 8 8 11 20 20 20 19 6 25 25 22 Most Carried 25 | 6 8 8 20 20 20 20 20 13 25 25 25 Average Carried 16 | 4 6 7 9 19 19 16 19 4 19 23 21 Final Capacity 25 | 8 8 8 20 20 20 20 20 25 25 25 5 Final Carried 25 | 6 8 8 20 20 20 19 17 13 22 25 5 Class Distribution -------------------- 52% | Scavenger-Mutant 38% | Mutant 5% | Hacker-Mutant 3% | Scavenger-Skirmisher Dominant Class ---------------- Mutant | -10/Materials Mutant | -9/Materials Scavenger-Mutant | -8/Materials Mutant | -7/Factory Mutant | -6/Factory Mutant | -5/Factory Scavenger-Mutant | -4/Factory Scavenger-Mutant | -3/Research Scavenger-Mutant | -3/Quarantine Scavenger-Mutant | -2/Research Scavenger-Mutant | -1/Access Resources | -11 -10 -9 -8 -7 -6 -5 -4 -3 -3 -2 -1 ----------- Run | Yrd Mat Mat Mat Fac Fac Fac Fac Res Qua Res Acc Matter Collected 5806 | 213 141 87 383 243 405 408 474 857 423 1392 780 Remotely 309 | . . . . . . . . . 309 . . Salvage Created 9587 | . 357 415 894 284 405 388 1013 1778 605 2848 600 Parts 452 | . 30 30 47 15 15 12 42 71 32 137 21 Haulers Intercepted 4 | . . . . . 1 . . 1 . 1 1 Recyclers Shooed 12 | . . . . 1 . 1 . 4 . 4 2 Parts Field Recycled . | . . . . . . . . . . . . Retrieved Matter . | . . . . . . . . . . . . Parts Self-Destructed . | . . . . . . . . . . . . Prevented . | . . . . . . . . . . . . Kills | -11 -10 -9 -8 -7 -6 -5 -4 -3 -3 -2 -1 ------- Run | Yrd Mat Mat Mat Fac Fac Fac Fac Res Qua Res Acc Combat Hostiles Destroyed 149 | . 12 10 14 9 8 6 16 22 9 31 12 Guns 85 | . 12 4 9 9 8 4 7 3 3 26 . Cannons 54 | . . 6 5 . . 2 8 10 6 5 12 Classes Destroyed 15 | . 4 1 5 1 1 . 1 . . 2 . Worker 2 | . 1 . . . . . . 1 . . . Builder 5 | . . . 2 . . . . . . 1 2 Tunneler 2 | . . . . . . . 1 . . 1 . Hauler 4 | . . . . . 1 . . 1 . 1 1 Recycler 9 | . . . 2 . . . 1 1 . 4 1 Mechanic 1 | . . . 1 . . . . . . . . Operator 2 | . . . 1 1 . . . . . . . Watcher 8 | . 1 . 2 . . 2 . 2 1 . . Swarmer 31 | . 9 3 3 4 . . 2 4 . . 6 Grunt 44 | . 3 4 6 4 4 4 4 6 1 8 . Duelist 2 | . . . . . . . . . . 2 . Protector 1 | . . . . . . . . . . 1 . Sentry 15 | . . 3 3 . 2 . 1 2 . 3 1 Hunter 19 | . . . 2 . . 2 4 4 5 . 2 Programmer 37 | . . . . 1 2 . 5 6 3 17 3 Best Kill Streak 7 | . 5 4 3 5 3 2 4 4 4 7 6 Combat Bots Only 4 | . 4 4 3 4 3 2 2 4 4 3 3 Max Kills in Single Turn 2 | . 1 1 2 1 1 1 1 1 1 1 1 Gunslinging . | . . . . . . . . . . . . Exploded . | . . . . . . . . . . . . Melee . | . . . . . . . . . . . . Uniques/NPCs Destroyed . | . . . . . . . . . . . . Combat | -11 -10 -9 -8 -7 -6 -5 -4 -3 -3 -2 -1 -------- Run | Yrd Mat Mat Mat Fac Fac Fac Fac Res Qua Res Acc Hostile Shots Fired 2248 | . 45 38 114 77 118 142 294 319 274 398 429 Missed 716 | . 15 13 20 21 38 34 101 108 108 102 156 Hits 1532 | . 30 25 94 56 80 108 193 211 166 296 273 Melee 9 | . . . . . . . . . . 9 . Projectile 1523 | . 30 25 94 56 80 108 193 211 166 287 273 AOE 3 | . . . . . . 1 . . 1 . 1 Critical Strikes 71 | . . 2 5 1 3 3 13 10 5 17 12 Part Disruptions 6 | . . . . . . . 1 1 1 1 2 Damage Taken 29035 | . 332 293 1314 872 1127 1865 3516 4094 2716 6982 5924 Core 4355 | . 81 10 150 79 93 212 837 626 284 377 1606 Absorbed by Shields 782 | . . . . . . . 228 30 145 101 278 Redirected to Core 26 | . . . . . . . . . 26 . . Redirected to Shielding 170 | . . . . . . . . . 111 31 28 Regen/Repaired (Parts) 195 | . . . . . 195 . . . . . . Core Remaining (%) 72 | 100 67 97 72 88 89 78 27 . 30 74 . Volleys Fired 701 | . 29 21 66 28 30 35 80 114 38 203 57 Largest 2 | . 2 2 2 2 2 2 2 2 2 2 2 Hottest 207 | . 60 112 112 93 56 167 142 180 169 207 112 Shots Fired 1179 | . 57 42 115 56 60 57 116 184 71 307 114 Gun 806 | . 57 18 78 56 60 46 60 113 38 280 . Cannon 372 | . . 24 37 . . 11 55 71 33 27 114 Launcher . | . . . . . . . . . . . . Special 1 | . . . . . . . 1 . . . . Kinetic 580 | . 45 2 59 28 60 35 40 54 36 107 114 Thermal 441 | . . . 28 28 . 22 68 71 34 190 . Explosive . | . . . . . . . . . . . . Electromagnetic 157 | . 12 40 28 . . . 7 59 1 10 . Robot Hit Streak 18 | . 7 6 13 9 13 18 13 14 6 15 9 Robot Miss Streak 7 | . 3 6 7 5 4 4 6 4 4 7 4 Penetration Max 1 | . . . . . . 1 1 1 . 1 1 Secondary Targets 12 | . 2 . 1 1 1 3 . . . 4 . Max Gunslinging Chain 1 | . 1 . 1 1 1 1 . . . 1 . Capacitor 99 | . . . . . . . 37 . . 62 . Shots Hit Robots 767 | . 29 23 76 45 52 41 91 122 32 202 54 Core Hits 434 | . 21 13 40 39 73 23 55 43 16 89 22 Critical Kills 15 | . . . 1 . . 1 3 6 1 3 . Critical Parts Destroyed 28 | . . . 1 . . 1 3 4 1 18 . Critical Strikes 72 | . . . 3 . . 3 6 18 2 28 12 Burn 2 | . . . 1 . . 1 . . . . . Meltdown 6 | . . . . . . 1 1 4 . . . Destroy 37 | . . . 2 . . 1 5 6 2 21 . Blast 15 | . . . . . . . . . . 3 12 Corrupt 12 | . . . . . . . . 8 . 4 . Melee Attacks 2 | . . . . . . . . . . 2 . Kinetic 2 | . . . . . . . . . . 2 . Impact . | . . . . . . . . . . . . Slashing . | . . . . . . . . . . . . Piercing . | . . . . . . . . . . . . Sneak Attacks . | . . . . . . . . . . . . Combat Hostiles . | . . . . . . . . . . . . Follow-up Attacks . | . . . . . . . . . . . . Damage Inflicted 22347 | . 310 409 1571 764 1141 912 2545 3742 1175 7147 2631 Guns 13237 | . 306 180 804 764 1141 620 1199 1888 354 5981 . Cannons 8588 | . . 229 596 . . 291 1325 1794 816 938 2599 Explosions 246 | . . . 167 . . . . 57 . . 22 Melee 114 | . . . . . . . . . . 114 . Ramming 162 | . 4 . 4 . . 1 21 3 5 114 10 Kinetic 10219 | . 194 7 627 432 1141 450 773 825 354 2817 2599 Thermal 9691 | . . . 494 332 . 461 1651 1851 816 4086 . Explosive . | . . . . . . . . . . . . Electromagnetic 2275 | . 112 402 446 . . . 100 1063 . 130 22 Impact . | . . . . . . . . . . . . Slashing . | . . . . . . . . . . . . Piercing . | . . . . . . . . . . . . Highest Corruption 36 | . . . . 3 2 5 6 11 5 36 20 Average Corruption 9 | . . . . 2 1 5 1 5 3 19 5 Corruption Purged 11 | . . . . . . . . 10 . . 1 Corruption Blocked . | . . . . . . . . . . . . Effects 181 | . . . . 2 5 4 8 23 22 106 11 Message Errors 35 | . . . . 2 1 1 . 5 5 19 2 Matter Fused 37 | . . . . . . 2 2 4 8 20 1 Heat Flow Errors 17 | . . . . . . . 1 3 1 11 1 Energy Discharges 24 | . . . . . 3 . 2 2 4 12 1 Parts Rejected 2 | . . . . . . . . . . 1 1 Parts Fused 2 | . . . . . . . . . 2 . . Data Loss (minor) 18 | . . . . . . . 2 2 1 13 . Data Loss (major) 9 | . . . . . 1 . 1 . 1 3 3 Misfires 11 | . . . . . . . . 4 . 7 . Alerts 3 | . . . . . . . . 1 . 1 1 Misdirections 2 | . . . . . . . . . . 1 1 Weapon Failures 21 | . . . . . . 1 . 2 . 18 . Overload Shots . | . . . . . . . . . . . . Overflow Damage 393 | . . . 62 . . . 23 144 83 19 62 Projectiles 328 | . . . . . . . 23 144 83 16 62 Explosions 62 | . . . 62 . . . . . . . . Melee 3 | . . . . . . . . . . 3 . Knockbacks 45 | . . . . . . . 14 . . 5 26 Impact . | . . . . . . . . . . . . Kinetic 43 | . . . . . . . 14 . . 5 24 Secondary 2 | . . . . . . . . . . . 2 Self-Inflicted Damage 126 | . . . 34 . . . . 87 . . 5 Shots 2 | . . . 1 . . . . 1 . . . Rammed 2 | . . . . . . 1 . . . . 1 Targets Rammed 16 | . 2 . 1 . . 1 3 1 1 6 1 Kicked 14 | . 2 . 1 . . . 3 1 1 6 . Crushed . | . . . . . . . . . . . . Highest Temperature 466 | . 112 111 334 340 30 291 248 427 22 466 125 Average Temperature 99 | . 31 29 107 132 9 90 93 140 22 92 73 Received Heat Transfer 3209 | . 84 114 396 324 345 522 406 356 23 594 45 Effects 10 | . . . 1 2 . . 2 2 . 3 . Energy Bleed 3 | . . . 1 1 . . . 1 . . . Interference 2 | . . . . . . . 2 . . . . Matter Decay 4 | . . . . . . . . 1 . 3 . Damage (minor) 1 | . . . . 1 . . . . . . . Siege Activations . | . . . . . . . . . . . . Martial Activations . | . . . . . . . . . . . . Shielding Activations 2 | . . . . . . . . . . 1 1 Total Turns 10 | . . . . . . . . . . 8 2 Longest Duration 8 | . . . . . . . . . . 8 2 Robots Disrupted . | . . . . . . . . . . . . Combat Hostiles . | . . . . . . . . . . . . Robots Corrupted 5 | . . . . . . . . 5 . . . Combat Hostiles 5 | . . . . . . . . 5 . . . Parts Fried 19 | . . 1 3 . . . . 12 . 3 . Impact Corruptions 1 | . . . . . . . . . . 1 . Robots Melted 6 | . . . . . . 1 1 4 . . . Combat Hostiles 5 | . . . . . . . 1 4 . . . Parts Melted 21 | . . . 2 . . 1 3 8 . 7 . Heat Transferred 11718 | . . . 890 777 . 857 2336 1715 703 4440 . Parts Sabotaged 1 | . . . . . . . . . . 1 . Parts Stolen . | . . . . . . . . . . . . Parts Stripped . | . . . . . . . . . . . . Power Chain Reactions 2 | . . . 1 . . . . 1 . . . Alert | -11 -10 -9 -8 -7 -6 -5 -4 -3 -3 -2 -1 ------- Run | Yrd Mat Mat Mat Fac Fac Fac Fac Res Qua Res Acc Maximum Alert Level 2 | . . 1 . . . . 1 1 . 2 1 Low Security (%) 90 | 100 100 88 100 100 100 100 90 86 100 70 93 Level 1 9 | . . 11 . . . . 9 13 . 28 6 Level 2 . | . . . . . . . . . . . . Level 3 . | . . . . . . . . . . . . Level 4 . | . . . . . . . . . . . . Level 5 . | . . . . . . . . . . . . High Security . | . . . . . . . . . . . . Max Security . | . . . . . . . . . . . . Peak Influence 401 | . 136 220 110 75 101 44 231 278 122 401 239 Initial 239 | . . 41 59 14 . . 4 38 117 13 239 Average 65 | . 60 124 54 10 18 9 84 70 42 96 99 Influence Increases 5204 | . 334 370 415 231 316 190 578 781 447 1030 512 Destroy 0b10 Robot/C 2960 | . 240 200 280 180 160 120 320 440 180 600 240 Destroy 0b10 Robot/NC 170 | . 10 . 40 5 5 10 10 25 5 40 20 Destroy Leader 652 | . 42 50 74 30 50 24 80 86 42 132 42 Successful Hack 150 | . 27 15 . 16 26 . . . 24 21 21 Disable Machine 135 | . . . 15 . . . . . 45 45 30 Destroy Structure 312 | . . . 6 . . 6 18 80 16 57 129 Partial Spotted 45 | . . 15 . . . 30 . . . . . Lose Combat Pursuer 780 | . 15 90 . . 75 . 150 150 135 135 30 Influence Decreases 5204 | . 235 327 526 262 316 179 515 645 633 655 911 Entered New Map 465 | . . 58 83 17 . . 7 36 93 11 160 Time Decay 3331 | . 215 259 353 195 240 127 268 467 323 432 452 Lost Part 1402 | . 20 10 90 50 70 52 240 142 217 212 299 Purge Threat 6 | . . . . . 6 . . . . . . Squads Dispatched 38 | . 1 . 2 2 3 3 3 7 5 8 4 Investigation 4 | . 1 . . . . 1 . 1 1 . . Extermination 21 | . . . . 1 2 . 3 4 2 6 3 Reinforcement 11 | . . . 2 1 1 2 . 2 2 . 1 Assault 2 | . . . . . . . . . . 2 . Garrison . | . . . . . . . . . . . . Intercept . | . . . . . . . . . . . . Searches Triggered . | . . . . . . . . . . . . Construction Impeded 4 | . . . 2 . . 1 . . . . 1 Haulers Reinforced 1 | . . . . . . . . 1 . . . Active Scanning Responses . | . . . . . . . . . . . . Cargo Convoy Interrupts . | . . . . . . . . . . . . Stealth | -11 -10 -9 -8 -7 -6 -5 -4 -3 -3 -2 -1 --------- Run | Yrd Mat Mat Mat Fac Fac Fac Fac Res Qua Res Acc Distress Signals 23 | . 2 1 4 . 1 1 . 3 6 4 1 Communications Jammed . | . . . . . . . . . . . . Distress Signals . | . . . . . . . . . . . . Times Spotted 293 | . 19 22 28 11 15 15 32 44 29 56 22 Peak Tracking Total 9 | . 4 6 5 4 4 5 9 5 9 9 6 Tactical Retreats 33 | . 1 4 . . 2 . 7 5 6 6 2 Traps | -11 -10 -9 -8 -7 -6 -5 -4 -3 -3 -2 -1 ------- Run | Yrd Mat Mat Mat Fac Fac Fac Fac Res Qua Res Acc Traps Triggered 11 | . 2 . . 2 1 1 1 1 2 1 . Indirectly . | . . . . . . . . . . . . Trap Hack Attempts . | . . . . . . . . . . . . Triggered . | . . . . . . . . . . . . Disarmed . | . . . . . . . . . . . . Reprogrammed . | . . . . . . . . . . . . Reused . | . . . . . . . . . . . . Traps Extracted . | . . . . . . . . . . . . Installed . | . . . . . . . . . . . . Triggered . | . . . . . . . . . . . . Machines | -11 -10 -9 -8 -7 -6 -5 -4 -3 -3 -2 -1 ---------- Run | Yrd Mat Mat Mat Fac Fac Fac Fac Res Qua Res Acc Machines Disabled 9 | . . . 1 . . . . . 3 3 2 Max in Single Turn 1 | . . . 1 . . . . . 1 1 1 Garrison Access 1 | . . . . . . . . . . 1 . Machines Repaired . | . . . . . . . . . . . . Machines Dismantled . | . . . . . . . . . . . . Machines Sabotaged . | . . . . . . . . . . . . Overloaded Fab Kills . | . . . . . . . . . . . . Hacking | -11 -10 -9 -8 -7 -6 -5 -4 -3 -3 -2 -1 --------- Run | Yrd Mat Mat Mat Fac Fac Fac Fac Res Qua Res Acc Machines Accessed 35 | . 5 4 1 4 7 1 . 1 4 5 3 Terminals 22 | . 3 3 1 3 4 1 . 1 2 3 1 Fabricators 1 | . . . . 1 . . . . . . . Repair Stations 3 | . 1 . . . 2 . . . . . . Recycling Units 1 | . 1 . . . . . . . . . . Scanalyzers 8 | . . 1 . . 1 . . . 2 2 2 Garrison Access . | . . . . . . . . . . . . Total Hacks 89 | . 14 10 3 6 19 7 . 3 9 12 6 Successful 50 | . 9 7 . 2 14 4 . 1 5 4 4 Failed 39 | . 5 3 3 4 5 3 . 2 4 8 2 Catastrophic 3 | . 1 . . . . 1 . . . 1 . Database Lockouts . | . . . . . . . . . . . . Manual 14 | . . . . . 2 5 . 3 1 1 2 Terminals 64 | . 11 8 3 5 9 7 . 3 5 10 3 Fabricators 1 | . . . . 1 . . . . . . . Repair Stations 10 | . 2 . . . 8 . . . . . . Recycling Units 1 | . 1 . . . . . . . . . . Scanalyzers 13 | . . 2 . . 2 . . . 4 2 3 Garrison Access . | . . . . . . . . . . . . Terminal Hacks 34 | . 7 5 . 2 8 4 . 1 2 3 2 Record 11 | . . . . 1 2 3 . 1 1 1 2 Robot Analysis 1 | . . 1 . . . . . . . . . Prototype ID Bank 2 | . 2 . . . . . . . . . . Open DSF 3 | . . . . 1 2 . . . . . . Level Access Points 1 | . . . . . . . . . 1 . . Emergency Access Points 1 | . . . . . . . . . . 1 . Alert Level 3 | . 1 . . . 1 . . . . 1 . Unreport Threat 1 | . . . . . 1 . . . . . . Locate Traps 4 | . 2 2 . . . . . . . . . Maintenance Status 1 | . . . . . 1 . . . . . . Surveillance Status 1 | . . . . . 1 . . . . . . Hauler Manifests 2 | . 1 1 . . . . . . . . . Registered Components 1 | . . . . . . 1 . . . . . Zone Layout 2 | . 1 1 . . . . . . . . . Fabricator Hacks . | . . . . . . . . . . . . Repair Station Hacks 5 | . 1 . . . 4 . . . . . . Scan Component 3 | . 1 . . . 2 . . . . . . Repair 2 | . . . . . 2 . . . . . . Recycling Unit Hacks 1 | . 1 . . . . . . . . . . Report Inventory 1 | . 1 . . . . . . . . . . Scanalyzer 10 | . . 2 . . 2 . . . 3 1 2 Insert Component 8 | . . 1 . . 1 . . . 3 1 2 Analyze 2 | . . 1 . . 1 . . . . . . Garrison Access Hacks . | . . . . . . . . . . . . Unauthorized Hacks . | . . . . . . . . . . . . Terminals . | . . . . . . . . . . . . Fabricators . | . . . . . . . . . . . . Repair Stations . | . . . . . . . . . . . . Recycling Units . | . . . . . . . . . . . . Scanalyzers . | . . . . . . . . . . . . Garrison Access . | . . . . . . . . . . . . Data Cores Recovered 1 | . . . 1 . . . . . . . . Used . | . . . . . . . . . . . . Hacking Detections 31 | . 4 3 1 4 5 2 . 1 3 5 3 Full Trace Events 2 | . . . . . . . . 1 1 . . Feedback Events . | . . . . . . . . . . . . Feedback Blocked . | . . . . . . . . . . . . Robot Schematics Acquired . | . . . . . . . . . . . . Robots Built . | . . . . . . . . . . . . Authchips . | . . . . . . . . . . . . Time . | . . . . . . . . . . . . Total Robot Build Rating . | . . . . . . . . . . . . Part Schematics Acquired 2 | . . 1 . . 1 . . . . . . Parts Built . | . . . . . . . . . . . . Authchips . | . . . . . . . . . . . . Time . | . . . . . . . . . . . . Total Part Build Rating . | . . . . . . . . . . . . Parts Repaired 2 | . . . . . 2 . . . . . . Time 32 | . . . . . 32 . . . . . . Parts Recycled . | . . . . . . . . . . . . Recycled Matter . | . . . . . . . . . . . . Retrieved Matter . | . . . . . . . . . . . . Retrieved Components . | . . . . . . . . . . . . Parts Scanalyzed 2 | . . 1 . . 1 . . . . . . Part Schematics Acquired 2 | . . 1 . . 1 . . . . . . Parts Damaged . | . . . . . . . . . . . . Bothacking | -11 -10 -9 -8 -7 -6 -5 -4 -3 -3 -2 -1 ------------ Run | Yrd Mat Mat Mat Fac Fac Fac Fac Res Qua Res Acc Used RIF Installer . | . . . . . . . . . . . . Robots Hacked . | . . . . . . . . . . . . Non-combat . | . . . . . . . . . . . . Combat . | . . . . . . . . . . . . Robot Hacks Applied . | . . . . . . . . . . . . Relay Couplers Released 1 | . . . . . . . . . . 1 . Machine Destruction 1 | . . . . . . . . . . 1 . Fabnet Peak Effective % . | . . . . . . . . . . . . Robots Rewired . | . . . . . . . . . . . . Allies Hacked . | . . . . . . . . . . . . Hacks Repelled . | . . . . . . . . . . . . Allies | -11 -10 -9 -8 -7 -6 -5 -4 -3 -3 -2 -1 -------- Run | Yrd Mat Mat Mat Fac Fac Fac Fac Res Qua Res Acc Total Allies . | . . . . . . . . . . . . Largest Group . | . . . . . . . . . . . . Highest-Rated Group . | . . . . . . . . . . . . Highest-Rated Ally . | . . . . . . . . . . . . Total Orders . | . . . . . . . . . . . . Ally Attacks . | . . . . . . . . . . . . Total Damage . | . . . . . . . . . . . . Kills . | . . . . . . . . . . . . Allies Corrupted . | . . . . . . . . . . . . Allies Melted . | . . . . . . . . . . . . Intel | -11 -10 -9 -8 -7 -6 -5 -4 -3 -3 -2 -1 ------- Run | Yrd Mat Mat Mat Fac Fac Fac Fac Res Qua Res Acc Active Infowar (turns) 7083 | . . . 719 70 1472 444 1293 . . 2225 860 Optics 1878 | . . . . . 141 444 1293 . . . . Sensors 3299 | . . . 229 70 . . . . . 2225 775 IFF 429 | . . . . . . . . . . . 429 Traps 292 | . . . . . 292 . . . . . . Seismic 490 | . . . 490 . . . . . . . . Machine Analysis 3197 | . . . . . 1472 444 1281 . . . . Jamming 2 | . . . . . . 2 . . . . . Robot Analysis Total 1 | . . 1 . . . . . . . . . Derelict Logs Recovered . | . . . . . . . . . . . . Drone Launches . | . . . . . . . . . . . . Drone Recoveries . | . . . . . . . . . . . . Exploration | -11 -10 -9 -8 -7 -6 -5 -4 -3 -3 -2 -1 ------------- Run | Yrd Mat Mat Mat Fac Fac Fac Fac Res Qua Res Acc Turns Passed 12673 | 76 691 616 864 914 1503 482 1422 1580 821 2523 1181 Spaces Moved 6964 | 41 440 373 438 524 774 377 787 838 444 1085 843 Core 242 | 41 . . . . . . 34 19 . . 148 Treads 808 | . 116 . . . . . . 150 . 542 . Legs 4765 | . 324 373 438 524 718 . 271 435 444 543 695 Wheels . | . . . . . . . . . . . . Hover 1149 | . . . . . 56 377 482 234 . . . Flight . | . . . . . . . . . . . . Fastest Speed 50 | 50 120 120 120 115 106 52 50 50 118 118 50 Average Speed 135 | 159 130 120 136 145 163 83 142 126 137 158 110 Slowest Speed 330 | 200 160 120 192 193 265 126 330 250 190 305 190 Overloaded Moves . | . . . . . . . . . . . . Propulsion Burnouts . | . . . . . . . . . . . . Robots Hopped . | . . . . . . . . . . . . Potential Cave-ins 6 | . . . . . . . . 6 . . . Cave-ins Triggered . | . . . . . . . . . . . . Exploration Rate (%) 19 | 3 56 23 27 8 15 6 13 14 34 14 15 Regions Visited 11 Branch Regions 1 Pre-discovered Areas . | . . . . . . . . . . . . Known Exits Taken 5 | . . . . . 1 1 1 . 1 1 . Unknown Exits Taken 6 | 1 1 1 1 1 . . . 1 . . . Scrap Searched . | . . . . . . . . . . . . Spaces Dug 18 | . . . . . . . . 3 2 1 12 Terrain Destroyed 134 | . . . 6 . . 2 11 42 9 15 49 Melee . | . . . . . . . . . . . . Projectile 117 | . . . 3 . . 2 11 28 9 15 49 AOE 17 | . . . 3 . . . . 14 . . . Terrain Rammed . | . . . . . . . . . . . . Walls Destroyed . | . . . . . . . . . . . . Machines Disabled . | . . . . . . . . . . . . Actions | -11 -10 -9 -8 -7 -6 -5 -4 -3 -3 -2 -1 --------- Run | Yrd Mat Mat Mat Fac Fac Fac Fac Res Qua Res Acc Total 9172 | 50 508 503 620 626 951 486 1003 1242 577 1625 981 Wait 821 | . 15 85 65 21 85 43 60 176 11 220 40 Move 6954 | 40 440 372 437 523 773 376 786 837 443 1084 843 Hop . | . . . . . . . . . . . . Pick Up 210 | 6 10 5 25 21 20 9 25 25 21 31 12 Fast Attach 108 | 4 3 2 2 3 5 6 10 31 20 15 7 Attach 139 | . 2 3 10 9 9 10 16 22 21 28 9 Detach 43 | . . 2 . 1 1 3 3 12 10 11 . Swap 79 | . 2 5 10 6 12 2 4 12 9 13 4 Drop 100 | . 6 8 4 14 16 1 16 12 3 12 8 Fire 701 | . 29 21 66 28 30 35 80 114 38 203 57 Melee 2 | . . . . . . . . . . 2 . Ram 2 | . . . . . . 1 . . . . 1 Kick 13 | . 1 . 1 . . . 3 1 1 6 . Crush . | . . . . . . . . . . . . Escape Stasis . | . . . . . . . . . . . . Rewire . | . . . . . . . . . . . . Trap . | . . . . . . . . . . . . Miscellaneous . | . . . . . . . . . . . . Route ------- -11/Scrapyard -10/Materials (discovered 2 exits: *Mat / [*Min]) -9/Materials -8/Materials -7/Factory -6/Factory -5/Factory -4/Factory (discovered 2 exits: *Res / [*Ext]) -3/Research -3/Quarantine -2/Research -1/Access History --------- Turn | Location | Event 33 | -11/Scrapyard | Discovered new exit (range 15) 77 | -11/Scrapyard | Entered Materials 336 | -10/Materials | Build established: Mutant 480 | -10/Materials | Discovered new exit (range 7) 733 | -10/Materials | Discovered new exit (range 17) 768 | -10/Materials | Entered another Materials area 768 | -9/Materials | Evolved 2 slots: Propulsion x2 1309 | -9/Materials | Discovered new exit (range 3) 1384 | -9/Materials | Entered another Materials area 1384 | -8/Materials | Evolved 2 slots: Utility x2 1753 | -8/Materials | Lost 3 parts (2n1w) 1816 | -8/Materials | Lost 3 parts (1p1n1w) 1970 | -8/Materials | Build established: Scavenger-Mutant 2081 | -8/Materials | Discovered new exit (range 16) 2248 | -8/Materials | Entered Factory 2248 | -7/Factory | Evolved 2 slots: Utility x2 2388 | -7/Factory | Lost 4 parts (1p2u1w) 2460 | -7/Factory | Lost 3 parts (2n1u) 2636 | -7/Factory | Build established: Mutant 2636 | -7/Factory | Discovered new exit (range 5) 3162 | -7/Factory | Entered another Factory area 3162 | -6/Factory | Evolved 2 slots: Utility x2 3557 | -6/Factory | Identified exit to DSF 3983 | -6/Factory | Lost 3 parts (1p1n1u) 4216 | -6/Factory | Repaired Titanium Leg 4259 | -6/Factory | Found Hvy. Insulated Plating 4324 | -6/Factory | Repaired Aluminum Leg 4485 | -6/Factory | Discovered new exit (range 11) 4570 | -6/Factory | Identified exit to Factory 4665 | -6/Factory | Entered another Factory area 4665 | -5/Factory | Evolved 2 slots: Propulsion x2 5002 | -5/Factory | Lost 11 parts (1p1n4u5w) 5041 | -5/Factory | Discovered new exit (range 21) 5118 | -5/Factory | Identified exit to Factory 5147 | -5/Factory | Entered another Factory area 5147 | -4/Factory | Evolved 2 slots: Propulsion x1, Utility x1 5297 | -4/Factory | Found Quantum Capacitor 5334 | -4/Factory | Build established: Scavenger-Mutant 5750 | -4/Factory | Discovered new exit (range 15) 5750 | -4/Factory | Discovered new exit (range 18) 5945 | -4/Factory | Lost 10 parts (2p4n2u2w) 6233 | -4/Factory | Identified exit to Research 6328 | -4/Factory | Found Quantum Capacitor 6552 | -4/Factory | Released all parts (10) 6561 | -4/Factory | Core integrity fell below 50% 6569 | -4/Factory | Entered Research 6569 | -3/Research | Evolved 2 slots: Propulsion x1, Utility x1 6581 | -3/Research | Lost 10 parts (6n4w) 7046 | -3/Research | Build established: Hacker-Mutant 7393 | -3/Research | System corruption reached 10% 7467 | -3/Research | Build established: Scavenger-Mutant 7553 | -3/Research | Lost 4 parts (2n1u1w) 8001 | -3/Research | Discovered new exit (range 10) 8149 | -3/Research | Entered Quarantine 8179 | -3/Quarantine | Lost 4 parts (1p2u1w) 8185 | -3/Quarantine | Found Alien Artifact 8186 | -3/Quarantine | Identified Phase Redirector 8267 | -3/Quarantine | Found Alien Impact Weapon 8269 | -3/Quarantine | Identified Core Stripper 8350 | -3/Quarantine | Found Unknown Device 8363 | -3/Quarantine | Core integrity fell below 50% 8427 | -3/Quarantine | Lost 10 parts (6n4u) 8469 | -3/Quarantine | Found Prototype Protection 8471 | -3/Quarantine | Found Prototype Protection 8706 | -3/Quarantine | Lost 5 parts (2n3u) 8710 | -3/Quarantine | Identified Heavy Servo Lattice 8760 | -3/Quarantine | Identified Centrium Heavy Armor Plating (x2) 8794 | -3/Quarantine | Identified exit to Research 8890 | -3/Quarantine | Found Alien Artifact 8890 | -3/Quarantine | Identified Terrabomb 8890 | -3/Quarantine | Used Terrabomb 8970 | -3/Quarantine | Entered Research 8970 | -2/Research | Evolved 2 slots: Utility x2 8994 | -2/Research | Lost 8 parts (1p2n3u2w) 9223 | -2/Research | Lost 10 parts (1p4n4u1w) 9574 | -2/Research | Found Quantum Capacitor 9576 | -2/Research | Found Quantum Capacitor 9886 | -2/Research | System corruption reached 10% 9938 | -2/Research | Lost 4 parts (2n1u1w) 10757 | -2/Research | Allied Derelicts emerged from ambush trap array 10766 | -2/Research | Lost 3 parts (1n2u) 11046 | -2/Research | Lost 3 parts (1n1u1w) 11340 | -2/Research | System corruption reached 30% 11462 | -2/Research | Discovered new exit (range 6) 11491 | -2/Research | Identified exit to Access 11493 | -2/Research | Entered Access 11493 | -1/Access | Evolved 2 slots: Utility x2 11900 | -1/Access | Found Prototype Processor 12070 | -1/Access | Lost 3 parts (1p2n) 12094 | -1/Access | Build established: Scavenger-Skirmisher 12324 | -1/Access | Lost 3 parts (1n2u) 12559 | -1/Access | System corruption reached 10% 12594 | -1/Access | Lost 19 parts (2p7n9u1w) 12630 | -1/Access | Lost 4 parts (2n2w) 12636 | -1/Access | Core integrity fell below 50% 12667 | -1/Access | Core integrity fell below 20% 12674 | -1/Access | Destroyed by H-88 Terminator with KE Penetrator Last Messages --------------- 12657_ Slammed into P-80 Master. 12662_ Penetrated by Slug. 12663_ Slug penetrates Wall. 12663_ Penetrated by Slug. 12665_ Adv. System Restoration Module destroyed. 12665_ Penetrated by Slug. 12666_ Slug penetrates Wall. 12667_ System corrupted: IFF burst signal emitted. 12668_ Slug penetrates P-80 Master. 12668_ Slug penetrates Wall. 12668_ Penetrated by Slug. 12668_ Adv. Target Analyzer destroyed. 12670_ Penetrated by Slug. 12671_ Slug penetrates P-80 Master. 12671_ P-80 Master destroyed. 12671_ Slug penetrates Wall. 12672_ Slug penetrates Door. 12674_ Penetrated by Slug. [Achievement: 10k Club] Map ----- +----------------------------------------------------+ | ??????????????###############????? | | ??????????????# * #????? | | ??????????????# #????? | | ??????????????# """"" #????? | | ??????????????# ""Y"" #????? | | ???? ?????????# #????? | | ???# ?????????# #????? | | ???# ?????????#+#####+###########? | | ???# #????????# #?# #? | | ???# ####+##### ### #? | | ???# #? | | ???# #? | | ???# #? | | #### #? | | #? | | #? | | #? | | #? | | #####+######### #? | | ## #?##### #? | | ## #?# #? | | ##### + #?# #? | | #??#+## #?# #? | | #?????# #?# #? | | #?????# #?# #? | | #?????########?# @ #? | | #??????????????# #? | | =#??????????????### #? | | #?????############ #? | | * #?????# ## #? | | #?????# # #? | | #+########## + R #? | | #? = #! !! # #? | | # # !! # h #? | | # # !! # !=######### | | + ###########[%!#???? # | | # # #! #?# = #???? # | | # # = # * ### ###? # | | # #? # # h #? # | | # #? # # h # = # | | # #?? #* # # # | | # #??####### " + # | | #/########## # # # | | # # # # | | # % # #? # | | # ## ##? # | | # ## #??? ]# | | = ########## ######## | | #????????# # #? | | #????????# # #? | +----------------------------------------------------+ Best States ------------- Heat Dissipation 106 Energy Generation 25 Energy Capacity 550 Matter Stores 300 Matter Capacity 300 Sight Range 22 Robot Scan Range 16 Terrain Scan Density 85 Additional Mass Support 9 Armor Coverage 825 Resistance: EM 30 Core Shielding 30 Weapon Shielding 66 Weapon Cycling 30 Phase Shifting 10 Evasion (%) 65 Targeting Accuracy 20 Target Analysis 12 Recoil Reduction 6 Energy Filtering 30 Kinecelleration 40 Offensive Hacking 20 Defensive Hacking 10 Item Schematics ----------------- Hcp. Storage Unit | -9/Materials | Scanalyzed Imp. Carbon-fiber Leg | -6/Factory | Scanalyzed Robot Schematics ------------------ None Fabricated ------------ Nothing Repaired ---------- Titanium Leg | 19% | -6/Factory Aluminum Leg | 13% | -6/Factory Alien Tech Used ----------------- Phase Redirector Core Stripper Terrabomb Achievements -------------- 10k Club Alien Tech Dangerous Findings Denied? I Spy Librarian Respectable Loadout Rockin' Loadout Streaker Tank Use The Force Challenges ------------ None Game ------ Seed CombatDimensionalTerminator Manual? 0 Play Time 06:14:43 Cumulative 16.2 hours Start 2025.07.15 @ 10:46:55 End 2025.07.15 @ 20:11:31 Sessions 5 Manual Loads 0 Difficulty Rogue Special Mode None Game No. 10 Rogue 10 Adventurer 0 Explorer 0 Win Type - Total 0 Types 0/0/0/0/0/0/0/0/0/0 Lore% 3 Gallery% 16 Achievement% 15 Wizard Run 0 Options --------- Layout 1 ASCII 0 Keyboard 1 Movement Vi Keybinds 0 Fullscreen 1 Font 32/SmallcapsGlow Map View 50x35 Zoom Use 0% Tactical HUD 1 Map Filters NONE Filters NONE Steam 1 RUN: 2b8aa8ee-781e-4a6b-ac78-f48219a012d9